bitfinex/quotes_SOLUSD_20240813
["timestamp","ask_amount","ask_price","bid_price","bid_amount"]
[1723592398765,20.0,146.67,146.61,15.3289]
[1723592401978,20.0,146.67,146.6,6.0656]
[1723592401979,6.8157,146.72,146.62,12.48]
[1723592402187,20.0,146.71,146.63,22.5074]
[1723592402396,33.91759491,146.71,146.63,22.5074]
[1723592406265,6.8158,146.72,146.64,28.7478]
[1723592407781,20.0,146.71,146.64,16.2678]
[1723592408467,26.8162,146.71,146.64,16.2678]
[1723592409691,20.0,146.71,146.64,16.2678]
[1723592413195,12.85647,146.7,146.64,16.2678]
[1723592413405,12.48,146.68,146.64,16.2678]
[1723592413568,19.2976,146.68,146.64,16.2678]
[1723592413769,20.15710493,146.68,146.64,16.2678]
[1723592414289,19.2976,146.68,146.64,16.2678]
[1723592414804,12.60549,146.68,146.64,16.2678]
[1723592415004,6.8189,146.65,146.6,16.4893]
[1723592415166,0.85950493,146.64,146.6,16.4893]
[1723592415784,65.0,146.65,146.6,16.4893]
[1723592417033,20.0,146.65,146.6,16.4893]
[1723592417182,20.0,146.66,146.6,17.85337311]
[1723592418794,20.0,146.66,146.6,16.4893]
[1723592420891,12.48,146.65,146.6,16.4893]
[1723592421111,19.2999,146.63,146.6,16.4893]
[1723592421406,20.85950493,146.62,146.54,22.4642]
[1723592421606,19.3009,146.61,146.54,22.4642]
[1723592421765,51.94679,146.6,146.54,22.4642]
[1723592421973,0.85950493,146.59,146.54,22.4642]
[1723592422306,51.94679,146.6,146.54,22.4642]
[1723592422771,45.12549,146.6,146.54,22.4642]
[1723592424438,12.48,146.57,146.54,22.4642]
[1723592425175,6.8231,146.56,146.54,22.4642]
[1723592425499,12.48,146.55,146.48,15.9022]
[1723592425703,12.48,146.53,146.48,15.9022]
[1723592425879,0.85950493,146.52,146.48,15.9022]
[1723592426073,12.48,146.55,146.48,15.9022]
[1723592426304,65.12549,146.54,146.48,15.9022]
[1723592427213,20.0,146.54,146.48,15.9022]
[1723592427510,12.48,146.58,146.48,28.3822]
[1723592427731,20.0,146.57,146.48,28.3822]
[1723592427931,20.0,146.57,146.5,12.48]
[1723592428110,0.12549,146.58,146.48,15.9022]
[1723592428313,20.12549,146.58,146.49,20.0]
[1723592428516,20.0,146.58,146.49,20.0]
[1723592430124,26.8219,146.59,146.5,22.9249]
[1723592430429,45.0,146.58,146.5,22.9249]
[1723592430626,20.0,146.57,146.5,22.9249]
[1723592431446,7.09554898,146.61,146.51,0.12549]
[1723592431617,31.33,146.64,146.53,21.232]
[1723592431819,6.8189,146.65,146.54,1.36437079]
[1723592432018,6.8189,146.65,146.53,21.232]
[1723592432323,31.33,146.64,146.53,21.232]
[1723592433131,0.12549,146.62,146.53,21.232]
[1723592433336,6.821,146.61,146.53,21.232]
[1723592433629,6.94589,146.62,146.53,21.232]
[1723592433815,65.12549,146.61,146.53,21.232]
[1723592434015,71.94629,146.61,146.53,21.232]
[1723592434411,0.98499493,146.6,146.53,21.232]
[1723592434633,6.8217,146.59,146.53,21.232]
[1723592434825,20.0,146.58,146.53,21.232]
[1723592435514,20.12549,146.59,146.53,21.232]
[1723592436030,26.94719,146.59,146.53,21.232]
[1723592436336,45.12549,146.58,146.53,21.232]
[1723592441249,20.0,146.59,146.53,21.232]
[1723592441732,20.0,146.62,146.53,21.232]
[1723592441911,20.0,146.63,146.53,21.232]
[1723592442301,6.8204,146.62,146.53,21.232]
[1723592442504,26.8208,146.61,146.53,21.232]
[1723592442725,20.0,146.6,146.53,21.232]
[1723592443542,20.0,146.61,146.53,21.232]
[1723592443754,26.8208,146.61,146.53,21.232]
[1723592444723,6.8214,146.6,146.53,21.232]
[1723592444952,6.94689,146.6,146.53,21.232]
[1723592445259,20.0,146.59,146.53,21.232]
[1723592446825,6.94689,146.6,146.53,21.232]
[1723592447147,65.0,146.59,146.53,21.232]
[1723592447638,0.85950493,146.58,146.53,21.232]
[1723592448247,0.85950493,146.57,146.53,21.232]
[1723592449325,65.0,146.59,146.53,21.232]
[1723592449644,0.85950493,146.58,146.53,21.232]
[1723592450052,65.0,146.59,146.53,21.232]
[1723592451888,77.53,146.59,146.53,21.232]
[1723592452557,20.0,146.59,146.53,21.232]
[1723592452866,20.12549,146.6,146.53,21.232]
[1723592454159,45.0,146.59,146.53,21.232]
[1723592455402,0.85950493,146.58,146.53,21.232]
[1723592456141,13.38950493,146.57,146.53,21.232]
[1723592456672,12.53,146.57,146.53,21.232]
[1723592458368,13.38950493,146.57,146.53,21.232]
[1723592459076,12.53,146.57,146.53,21.232]
[1723592459641,0.85950493,146.56,146.53,21.232]
[1723592459842,0.12549,146.56,146.53,15.0318]
[1723592460051,65.37647,146.56,146.53,15.0318]
[1723592460462,65.25098,146.56,146.53,15.0318]
[1723592460768,20.0,146.56,146.53,15.0318]
[1723592461957,12.53,146.59,146.53,15.0318]
[1723592462268,20.0,146.58,146.53,15.0318]
[1723592464770,57.65549,146.57,146.53,15.0318]
[1723592466371,12.53,146.57,146.53,15.0318]
[1723592466553,20.0,146.58,146.53,15.0318]
[1723592468778,57.65549,146.57,146.53,15.0318]
[1723592470252,0.85950493,146.56,146.53,15.0318]
[1723592470450,64.47829,146.57,146.53,15.0318]
[1723592470862,57.65549,146.57,146.53,15.0318]
[1723592472457,12.53,146.57,146.53,15.0318]
[1723592476510,20.0,146.58,146.53,15.0318]
[1723592479296,0.85950493,146.57,146.53,15.0318]
[1723592483886,26.8222,146.58,146.53,15.0318]
[1723592484100,20.0,146.58,146.53,15.0318]
[1723592486894,0.85950493,146.57,146.53,15.0318]
[1723592488494,7.68220493,146.57,146.53,15.0318]
[1723592488668,6.8227,146.57,146.53,15.0318]
[1723592488870,7.68220493,146.57,146.53,15.0318]
[1723592489788,26.8223,146.58,146.53,15.0318]
[1723592490507,0.85950493,146.57,146.53,15.0318]
[1723592491089,26.8223,146.58,146.53,15.0318]
[1723592491283,13.38950493,146.57,146.53,15.0318]
[1723592491481,12.53,146.57,146.53,15.0318]
[1723592491798,20.0,146.58,146.53,15.0318]
[1723592491970,12.53,146.58,146.53,15.0318]
[1723592492163,20.0,146.57,146.53,15.0318]
[1723592494674,13.93174298,146.61,146.54,7.79459372]
[1723592494988,13.93174298,146.61,146.54,6.4298]
[1723592495316,19.3489,146.66,146.58,15.2552]
[1723592495628,19.3489,146.66,146.59,6.4298]
[1723592495993,13.92492999,146.67,146.59,6.4298]
[1723592497129,13.92492999,146.67,146.6,1.36404618]
[1723592497303,13.92492999,146.67,146.59,6.4298]
[1723592497647,20.0,146.66,146.59,6.4298]
[1723592497828,20.0,146.66,146.59,18.9598]
[1723592498626,18.82838465,146.7,146.6,17.20712137]
[1723592498807,12.53,146.7,146.61,12.53]
[1723592499186,12.53,146.7,146.62,15.8432]
[1723592499619,19.3467,146.7,146.63,6.5617]
[1723592499815,6.8171,146.69,146.63,6.5617]
[1723592500014,6.818,146.67,146.63,6.5617]
[1723592500344,6.8176,146.68,146.63,6.5617]
[1723592500632,7.10924821,146.72,146.63,20.45534766]
[1723592500795,12.53,146.71,146.63,6.5617]
[1723592501212,6.8168,146.7,146.63,6.5617]
[1723592501422,19.3472,146.69,146.63,6.5617]
[1723592501591,19.3484,146.67,146.63,6.5617]
[1723592501793,7.67820493,146.66,146.63,6.5617]
[1723592502025,7.67820493,146.66,146.62,15.8432]
[1723592502026,6.8198,146.63,146.62,15.8432]
[1723592502223,6.8203,146.62,146.59,6.5948]
[1723592502717,39.47539,146.63,146.59,6.5948]
[1723592502928,45.0,146.62,146.59,6.5948]
[1723592503320,13.38950493,146.61,146.58,16.5781]
[1723592503625,12.53,146.59,146.58,16.5781]
[1723592503925,45.0,146.59,146.58,16.5781]
[1723592504728,45.0,146.59,146.55,6.2099]
[1723592504906,0.85950493,146.58,146.55,6.2099]
[1723592505101,20.0,146.59,146.55,6.2099]
[1723592506523,20.85950493,146.59,146.55,6.2099]
[1723592506705,20.0,146.59,146.55,6.2099]
[1723592510001,20.0,146.6,146.55,6.2099]
[1723592510228,0.85950493,146.59,146.55,6.2099]
[1723592510617,45.85950493,146.59,146.55,6.2099]
[1723592510820,0.85950493,146.58,146.55,6.2099]
[1723592512135,20.85950493,146.58,146.55,6.2099]
[1723592515817,0.85950493,146.57,146.54,15.5555]
[1723592516333,45.85950493,146.57,146.54,15.5555]
[1723592517023,45.85950493,146.57,146.51,21.9656]
[1723592517862,84.01230493,146.57,146.51,21.9656]
[1723592518138,20.0,146.56,146.51,21.9656]
[1723592518348,0.85950493,146.55,146.51,21.9656]
[1723592519132,20.0,146.56,146.51,21.9656]
[1723592520227,0.85950493,146.55,146.51,21.9656]
[1723592520437,20.0,146.56,146.51,21.9656]
[1723592525934,32.54,146.56,146.51,21.9656]
[1723592527446,0.85950493,146.55,146.51,21.9656]
[1723592528868,0.85950493,146.55,146.48,6.2574]
[1723592528869,0.85950493,146.54,146.48,6.2574]
[1723592529154,19.365,146.52,146.48,6.2574]
[1723592529336,12.66549,146.5,146.47,0.8383408]
[1723592529520,6.8268,146.48,146.47,0.8383408]
[1723592529726,20.0,146.48,146.47,0.8383408]
[1723592530155,0.98499493,146.54,146.47,0.8383408]
[1723592530156,19.365,146.52,146.47,0.8383408]
[1723592530431,20.0,146.49,146.47,0.8383408]
[1723592530843,0.12549,146.53,146.47,0.8383408]
[1723592531032,65.12549,146.53,146.47,0.8383408]
[1723592532260,0.12549,146.51,146.47,0.8383408]
[1723592532470,72.07658,146.51,146.47,0.8383408]
[1723592533939,20.0,146.51,146.47,0.8383408]
[1723592534142,20.0,146.53,146.47,0.8383408]
[1723592534350,45.0,146.52,146.47,0.8383408]
[1723592534552,20.0,146.51,146.47,0.8383408]
[1723592534866,0.12549,146.54,146.48,16.1604]
[1723592535157,19.3639,146.55,146.48,16.1604]
[1723592535330,65.0,146.54,146.48,16.1604]
[1723592535536,71.8241,146.54,146.48,16.1604]
[1723592536452,20.0,146.54,146.48,16.1604]
[1723592538140,20.0,146.54,146.49,6.2654]
[1723592538549,20.0,146.55,146.49,6.2654]
[1723592540246,26.8236,146.55,146.49,6.2654]
[1723592540449,20.0,146.55,146.49,6.2654]
[1723592540671,7.68360493,146.54,146.49,6.2654]
[1723592541770,6.95139,146.51,146.47,0.8383408]
[1723592542079,45.0,146.5,146.47,0.8383408]
[1723592544756,0.85950493,146.49,146.47,0.8383408]
[1723592546279,57.54,146.5,146.47,0.8383408]
[1723592548871,0.85950493,146.49,146.47,0.8383408]
[1723592549283,57.54,146.5,146.47,0.8383408]
[1723592550868,0.85950493,146.49,146.47,0.8383408]
[1723592552166,0.85950493,146.48,146.47,0.8383408]
[1723592552572,20.0,146.49,146.47,0.8383408]
[1723592553655,0.85950493,146.48,146.47,0.8383408]
[1723592553957,20.0,146.49,146.47,0.8383408]
[1723592555873,26.4677325,146.52,146.47,0.8383408]
[1723592555874,20.0,146.51,146.47,0.8383408]
[1723592556355,26.8255,146.51,146.47,0.8383408]
[1723592556756,20.0,146.51,146.47,0.8383408]
[1723592557173,26.8255,146.51,146.47,0.8383408]
[1723592560202,20.0,146.51,146.47,0.8383408]
[1723592560785,6.8264,146.49,146.47,0.8383408]
[1723592561365,64.74237,146.5,146.47,0.8383408]
[1723592561697,20.0,146.49,146.47,0.8383408]
[1723592562959,0.85950493,146.48,146.47,0.8383408]
[1723592563496,20.0,146.49,146.47,0.8383408]
[1723592565884,0.85950493,146.48,146.47,0.8383408]
[1723592567284,26.8264,146.49,146.47,0.8383408]
[1723592569470,65.35179493,146.48,146.47,0.8383408]
[1723592569667,85.60277493,146.48,146.47,0.8383408]
[1723592570079,77.91647,146.48,146.47,0.8383408]
[1723592570664,65.0,146.48,146.47,0.8383408]
[1723592570865,20.0,146.48,146.47,0.8383408]
[1723592574282,20.0,146.49,146.47,0.8383408]
[1723592574971,20.0,146.51,146.47,0.8383408]
[1723592575997,0.85950493,146.5,146.47,0.8383408]
[1723592576374,7.68550493,146.5,146.47,0.8383408]
[1723592576576,20.0,146.49,146.47,0.8383408]
[1723592576975,20.85950493,146.49,146.47,0.8383408]
[1723592577188,0.85950493,146.48,146.47,0.8383408]
[1723592577505,26.8264,146.49,146.47,0.8383408]
[1723592580473,20.0,146.49,146.47,0.8383408]
[1723592582385,26.8264,146.49,146.47,0.8383408]
[1723592582583,20.0,146.49,146.47,0.8383408]
[1723592582797,7.1024878,146.54,146.47,0.8383408]
[1723592583001,19.3637,146.55,146.47,0.8383408]
[1723592583503,6.8237,146.55,146.47,0.8383408]
[1723592583807,19.3637,146.55,146.47,0.8383408]
[1723592583976,6.8241,146.54,146.47,0.8383408]
[1723592584172,26.8246,146.53,146.47,0.8383408]
[1723592590110,51.825,146.52,146.47,0.8383408]
[1723592591212,45.0,146.52,146.47,0.8383408]
[1723592591981,45.0,146.52,146.48,22.5722]
[1723592592600,20.0,146.53,146.48,22.5722]
[1723592596919,26.8247,146.53,146.48,22.5722]
[1723592597107,20.0,146.53,146.48,22.5722]
[1723592599400,26.8246,146.53,146.48,22.5722]
[1723592602723,20.0,146.53,146.48,22.5722]
[1723592606597,20.0,146.54,146.48,22.5722]
[1723592609396,26.8241,146.54,146.48,22.5722]
[1723592611306,6.8248,146.53,146.48,22.5722]
[1723592611702,26.8241,146.54,146.48,22.5722]
[1723592613898,45.12549,146.53,146.48,22.5722]
[1723592615116,45.0,146.53,146.48,22.5722]
[1723592616429,20.0,146.54,146.48,22.5722]
[1723592618315,45.0,146.53,146.48,22.5722]
[1723592618836,7.07458,146.55,146.48,22.5722]
[1723592619026,20.0,146.54,146.48,22.5722]
[1723592622434,0.85950493,146.6,146.48,22.5722]
[1723592622435,25.66018465,146.59,146.5,16.6058]
[1723592622726,19.3618,146.59,146.51,1.36485938]
[1723592623229,19.3618,146.59,146.5,16.6058]
[1723592623440,6.8213,146.6,146.52,22.0114]
[1723592623612,6.8213,146.6,146.53,1.36463272]
[1723592624632,6.8213,146.6,146.52,22.0114]
[1723592624937,20.0,146.59,146.52,22.0114]
[1723592625612,32.54,146.59,146.52,22.0114]
[1723592625809,39.3617,146.59,146.52,22.0114]
[1723592626417,32.54,146.59,146.52,22.0114]
[1723592626631,20.0,146.59,146.52,22.0114]
[1723592627927,20.0,146.6,146.52,22.0114]
[1723592628330,20.0,146.6,146.53,1.36452917]
[1723592628519,20.0,146.6,146.54,15.0535]
[1723592628725,12.54,146.61,146.55,1.36449381]
[1723592629110,0.12549,146.63,146.55,1.36449381]
[1723592629342,52.32186,146.63,146.56,1.36441529]
[1723592629839,7.19637,146.63,146.56,1.36441529]
[1723592630841,20.0,146.62,146.56,1.36441529]
[1723592631137,20.0,146.62,146.55,6.0405]
[1723592632736,20.0,146.62,146.56,16.067]
[1723592632935,20.0,146.63,146.56,16.067]
[1723592634024,20.0,146.63,146.56,17.43118571]
[1723592634334,20.0,146.64,146.56,17.43118571]
[1723592635210,20.0,146.64,146.56,29.97118571]
[1723592635416,20.0,146.64,146.57,15.0025]
[1723592635627,20.0,146.64,146.58,1.36413262]
[1723592635935,20.0,146.64,146.59,6.2503]
[1723592636116,20.0,146.64,146.6,1.36411296]
[1723592636312,6.8183,146.67,146.6,1.36411296]
[1723592636522,7.0985855,146.68,146.6,1.36411296]
[1723592636523,13.9160855,146.68,146.61,1.36396392]
[1723592636718,6.8175,146.68,146.61,1.36396392]
[1723592636926,12.54,146.68,146.61,1.36396392]
[1723592637121,12.54,146.68,146.6,15.2667]
[1723592638040,19.3576,146.68,146.61,1.36390806]
[1723592638225,6.8171,146.69,146.6,15.2667]
[1723592638414,19.3567,146.7,146.61,13.90378403]
[1723592638616,19.3567,146.7,146.63,6.1153]
[1723592638824,19.3567,146.7,146.63,7.47898127]
[1723592639061,19.3567,146.7,146.63,6.1153]
[1723592639550,6.8162,146.71,146.64,1.36368821]
[1723592639853,6.8162,146.71,146.65,15.2667]
[1723592641144,6.8162,146.71,146.66,1.36353569]
[1723592641344,20.0,146.7,146.66,1.36353569]
[1723592641545,20.0,146.7,146.65,15.2667]
[1723592641715,20.0,146.71,146.65,15.2667]
[1723592642318,26.8162,146.71,146.65,15.2667]
[1723592642535,20.0,146.71,146.65,15.2667]
[1723592643027,6.8168,146.7,146.65,15.2667]
[1723592646049,12.54,146.68,146.65,15.2667]
[1723592646640,12.54,146.66,146.6,15.5601]
[1723592647925,19.3585,146.66,146.6,15.5601]
[1723592649059,26.8181,146.67,146.6,15.5601]
[1723592649355,20.0,146.67,146.6,15.5601]
[1723592653939,7.1087075,146.71,146.62,34.5537]
[1723592653940,6.8169,146.7,146.62,34.5537]
[1723592654162,20.0,146.69,146.62,34.5537]
[1723592655061,26.8171,146.69,146.62,34.5537]
[1723592656239,20.0,146.69,146.62,34.5537]
[1723592657873,20.0,146.7,146.62,34.5537]
[1723592659864,20.0,146.7,146.63,0.25098]
[1723592660054,20.0,146.7,146.64,15.7522]
[1723592660242,6.8158,146.72,146.64,28.2922]
[1723592660444,20.0,146.71,146.64,28.2922]
[1723592660939,24.14300211,146.76,146.66,12.54]
[1723592661253,6.8148,146.74,146.66,12.54]
[1723592661659,6.8144,146.75,146.66,12.54]
[1723592661847,6.8144,146.75,146.67,1.36326749]
[1723592662235,6.8147,146.74,146.66,12.54]
[1723592662670,6.8154,146.73,146.65,22.322]
[1723592662877,7.67490493,146.73,146.66,20.0]
[1723592664855,19.3548,146.74,146.66,20.0]
[1723592667172,51.8153,146.73,146.66,20.0]
[1723592667467,12.66549,146.72,146.65,22.322]
[1723592667670,65.85950493,146.71,146.65,22.322]
[1723592667854,0.85950493,146.7,146.65,22.322]
[1723592668481,20.0,146.71,146.65,22.322]
[1723592668689,20.0,146.73,146.65,22.322]
[1723592669187,27.67470493,146.73,146.65,22.322]
[1723592669381,12.66549,146.72,146.65,22.322]
[1723592669570,65.85950493,146.71,146.65,22.322]
[1723592669777,0.85950493,146.7,146.65,22.322]
[1723592671254,65.0,146.71,146.65,22.322]
[1723592672077,65.85950493,146.71,146.65,22.322]
[1723592672594,65.0,146.71,146.65,22.322]
[1723592673480,65.85950493,146.71,146.65,22.322]
[1723592673785,65.0,146.71,146.65,22.322]
[1723592674656,65.85950493,146.71,146.65,22.322]
[1723592675383,0.85950493,146.7,146.65,22.322]
[1723592676367,65.0,146.71,146.65,22.322]
[1723592677069,65.85950493,146.71,146.65,22.322]
[1723592678180,65.0,146.71,146.65,22.322]
[1723592681687,20.0,146.71,146.65,22.322]
[1723592682266,0.85950493,146.7,146.65,22.322]
[1723592683087,20.0,146.71,146.65,22.322]
[1723592683794,0.85950493,146.7,146.65,22.322]
[1723592684880,20.0,146.71,146.65,22.322]
[1723592686006,20.0,146.72,146.65,22.322]
[1723592686663,20.85950493,146.72,146.65,22.322]
[1723592688187,20.0,146.72,146.65,22.322]
[1723592689271,26.8157,146.72,146.65,22.322]
[1723592689475,7.67570493,146.71,146.65,22.322]
[1723592689687,0.85950493,146.7,146.65,22.322]
[1723592690306,7.67620493,146.7,146.65,22.322]
[1723592690821,0.85950493,146.69,146.65,22.322]
[1723592692284,0.12549,146.71,146.65,22.322]
[1723592692509,45.50196,146.71,146.65,22.322]
[1723592694121,52.31816,146.71,146.65,22.322]
[1723592694324,45.25098,146.71,146.65,22.322]
[1723592695313,46.11048493,146.71,146.65,22.322]
[1723592695515,52.92668493,146.71,146.65,22.322]
[1723592695916,0.85950493,146.7,146.65,22.322]
[1723592700794,7.67700493,146.69,146.65,22.322]
[1723592700996,57.54,146.68,146.65,15.7522]
[1723592701302,6.8195,146.64,146.61,22.6715]
[1723592701617,20.85950493,146.63,146.61,16.2829]
[1723592701819,20.85950493,146.63,146.57,22.6715]
[1723592702923,20.0,146.64,146.57,22.6715]
[1723592704212,0.85950493,146.63,146.57,22.6715]
[1723592710324,26.8194,146.64,146.57,22.6715]
[1723592710543,6.8208,146.61,146.57,22.6715]
[1723592710827,6.8227,146.57,146.53,21.8595]
[1723592711036,0.85950493,146.6,146.53,21.8595]
[1723592711037,0.85950493,146.56,146.53,21.8595]
[1723592711615,45.0,146.57,146.53,15.2462]
[1723592712031,45.12549,146.58,146.53,15.2462]
[1723592715731,45.98499493,146.58,146.53,15.2462]
[1723592715912,0.85950493,146.57,146.53,15.2462]
[1723592716831,51.94769,146.58,146.53,15.2462]
[1723592719909,45.12549,146.58,146.53,15.2462]
[1723592722508,0.85950493,146.57,146.53,15.2462]
[1723592723532,45.12549,146.58,146.53,15.2462]
[1723592724337,0.85950493,146.57,146.53,15.2462]
[1723592725432,45.12549,146.58,146.53,15.2462]
[1723592726233,17.0479,146.65,146.53,27.7862]
[1723592726437,6.8198,146.63,146.55,12.54]
[1723592726608,20.0,146.62,146.55,12.54]
[1723592726810,26.8204,146.62,146.55,12.54]
[1723592728427,0.98499493,146.61,146.54,6.6229]
[1723592728627,0.85950493,146.6,146.54,6.6229]
[1723592728934,6.94639,146.61,146.54,6.6229]
[1723592729317,20.0,146.6,146.54,6.6229]
[1723592730818,20.85950493,146.6,146.54,6.6229]
[1723592731719,20.0,146.63,146.55,12.54]
[1723592732029,0.85950493,146.62,146.55,12.54]
[1723592732519,20.0,146.63,146.55,12.54]
[1723592732713,6.94589,146.62,146.55,12.54]
[1723592732942,20.85950493,146.61,146.55,12.54]
[1723592733147,20.0,146.61,146.55,12.54]
[1723592734042,26.8208,146.61,146.55,12.54]
[1723592734224,27.68030493,146.61,146.54,6.6229]
[1723592734430,7.68080493,146.6,146.54,6.6229]
[1723592736731,0.85950493,146.6,146.54,6.6229]
[1723592738024,45.85950493,146.6,146.54,6.6229]
[1723592742360,0.98499493,146.59,146.54,6.6229]
[1723592742851,7.07328,146.58,146.54,6.6229]
[1723592743097,45.85950493,146.57,146.54,6.6229]
[1723592743362,45.85950493,146.57,146.53,15.2462]
[1723592744945,52.68220493,146.57,146.53,15.2462]
[1723592745146,0.37647,146.56,146.53,15.2462]
[1723592748589,45.0,146.57,146.53,15.2462]
[1723592749089,12.66549,146.58,146.53,15.2462]
[1723592749258,20.0,146.57,146.53,15.2462]
[1723592750689,20.12549,146.58,146.53,15.2462]
[1723592750889,45.0,146.57,146.53,15.2462]
[1723592751784,7.10065553,146.6,146.53,27.7862]
[1723592751953,6.8188,146.66,146.55,15.7179]
[1723592752155,6.8189,146.65,146.55,15.7179]
[1723592752366,13.92154159,146.65,146.58,12.54]
[1723592752682,6.8189,146.65,146.58,12.54]
[1723592753177,20.0,146.64,146.58,12.54]
[1723592753388,26.8195,146.64,146.57,12.54]
[1723592753683,20.0,146.64,146.57,12.54]
[1723592755991,20.0,146.64,146.58,1.36421208]
[1723592756189,20.0,146.64,146.54,6.38639]
[1723592756190,20.0,146.66,146.6,22.8993]
[1723592759661,26.8185,146.66,146.6,22.8993]
[1723592761188,6.8189,146.65,146.6,22.8993]
[1723592761387,20.0,146.66,146.6,22.8993]
[1723592761388,32.54,146.66,146.6,22.8993]
[1723592761593,6.8194,146.64,146.6,22.8993]
[1723592761766,7.67890493,146.64,146.6,22.8993]
[1723592761959,51.94449,146.65,146.6,22.8993]
[1723592763188,20.0,146.66,146.6,22.8993]
[1723592765695,7.10200079,146.7,146.62,12.54]
[1723592765891,12.54,146.73,146.62,12.54]
[1723592766068,19.64017116,146.73,146.62,12.54]
[1723592766778,6.8167,146.7,146.62,12.54]
[1723592767377,7.10017116,146.73,146.62,12.54]
[1723592767692,78.04196,146.72,146.63,16.0212]
[1723592767872,6.8165,146.71,146.63,16.0212]
[1723592768062,20.0,146.7,146.63,16.0212]
[1723592768687,6.8157,146.72,146.64,18.9497]
[1723592769282,16.4353,146.77,146.64,6.4097]
[1723592769283,12.54,146.73,146.64,6.4097]
[1723592769484,12.54,146.71,146.64,6.4097]
[1723592769671,6.8171,146.69,146.64,6.4097]
[1723592769874,12.54,146.69,146.64,6.4097]
[1723592770087,6.818,146.67,146.64,6.4097]
[1723592770488,6.8184,146.66,146.63,16.0212]
[1723592770669,7.67790493,146.66,146.63,16.0212]
[1723592770866,19.358,146.67,146.63,16.0212]
[1723592771218,12.54,146.67,146.63,16.0212]
[1723592772498,12.54,146.69,146.63,16.0212]
[1723592772801,20.0,146.68,146.63,16.0212]
[1723592773887,19.3562,146.71,146.64,1.3636741]
[1723592774200,71.94219,146.7,146.63,16.0212]
[1723592774400,72.06768,146.7,146.63,16.0212]
[1723592775590,65.0,146.7,146.63,16.0212]
[1723592775780,20.0,146.7,146.63,28.5612]
[1723592776803,20.0,146.7,146.63,16.0212]
[1723592777113,12.54,146.69,146.63,16.0212]
[1723592777408,0.85950493,146.68,146.63,16.0212]
[1723592778484,12.54,146.69,146.63,16.0212]
[1723592779974,20.0,146.7,146.63,16.0212]
[1723592780876,19.3561,146.71,146.63,16.0212]
[1723592782200,12.54,146.71,146.63,16.0212]
[1723592783093,19.3561,146.71,146.63,16.0212]
[1723592783677,12.54,146.69,146.63,16.0212]
[1723592783878,0.85950493,146.68,146.63,16.0212]
[1723592785795,12.54,146.69,146.63,16.0212]
[1723592786817,7.31856,146.7,146.63,16.0212]
[1723592787023,45.12549,146.69,146.63,16.0212]
[1723592789398,64.48259,146.69,146.63,16.0212]
[1723592790087,6.94349,146.67,146.63,16.0212]
[1723592790393,45.0,146.66,146.63,16.0212]
[1723592790893,45.12549,146.67,146.63,16.0212]
[1723592792703,20.0,146.66,146.63,16.0212]
[1723592794410,12.66549,146.65,146.6,15.1073]
[1723592794619,6.94589,146.62,146.57,6.1164]
[1723592794818,12.54,146.63,146.57,6.1164]
[1723592795009,65.25098,146.62,146.57,6.1164]
[1723592796332,12.54,146.61,146.57,6.1164]
[1723592796497,65.25098,146.62,146.57,6.1164]
[1723592796704,65.0,146.62,146.57,6.1164]
[1723592807038,6.8213,146.6,146.57,6.1164]